fUSD/lending_fUSD_20251009
["ID","MTS","AMOUNT","RATE_DAILY","PERIOD"]
[390463374,1760053850686,-151.0,0.00021917,7]
[390463376,1760053850695,-500.0,0.00021917,2]
[390463378,1760053850705,-2280.44,0.00021917,2]
[390463380,1760053850714,-151.0,0.00021917,7]
[390463382,1760053850723,-500.0,0.00021917,2]
[390463384,1760053850733,-151.0,0.00021917,7]
[390463386,1760053850742,-400.0,0.00021917,2]
[390463388,1760053850752,-151.0,0.00021917,7]
[390463390,1760053850761,-500.0,0.00021917,2]
[390463392,1760053850771,-500.0,0.00021917,2]
[390463394,1760053850781,-151.0,0.00021917,7]
[390463396,1760053850792,-276.033763,0.00021917,7]
[390463398,1760053850802,-326.724483,0.00021917,2]
[390463400,1760053850811,-500.0,0.00021917,2]
[390463402,1760053850821,-300.0,0.00021917,2]
[390463405,1760053850831,-11782.76,0.00021917,2]
[390463407,1760053850841,-1980.05,0.00021917,2]
[390463409,1760053850852,-500.0,0.00021917,2]
[390463411,1760053850861,-1284.84,0.00021917,2]
[390463413,1760053850871,-1442.61,0.00021917,2]
[390463415,1760053850880,-500.0,0.00021917,2]
[390463417,1760053850890,-1025.58,0.00021917,2]
[390463419,1760053850899,-500.0,0.00021917,2]
[390463421,1760053850910,-1767.6,0.00021917,2]
[390463423,1760053850919,-4737.61,0.00021917,2]
[390463425,1760053850929,-500.0,0.00021917,2]
[390463427,1760053850939,-500.0,0.00021917,2]
[390463429,1760053850949,-500.0,0.00021917,2]
[390463431,1760053850959,-500.0,0.00021917,2]
[390463433,1760053850968,-500.0,0.00021917,2]
[390463435,1760053850977,-500.0,0.00021917,2]
[390463437,1760053850987,-500.0,0.00021917,2]
[390463440,1760053850997,-1896.61,0.00021917,2]
[390463442,1760053851006,-500.0,0.00021917,2]
[390463444,1760053851015,-500.0,0.00021917,2]
[390463446,1760053851025,-500.0,0.00021917,2]
[390463448,1760053851034,-400.0,0.00021917,2]
[390463450,1760053851044,-500.0,0.00021917,2]
[390463452,1760053851054,-500.0,0.00021917,2]
[390463454,1760053851063,-500.0,0.00021917,2]
[390463456,1760053851072,-1095.66,0.00021917,2]
[390463458,1760053851081,-500.0,0.00021917,2]
[390463460,1760053851091,-9508.93,0.00021917,2]
[390463462,1760053851100,-500.0,0.00021917,2]
[390463464,1760053851109,-500.0,0.00021917,2]
[390463466,1760053851119,-500.0,0.00021917,2]
[390463468,1760053851128,-500.0,0.00021917,2]
[390463470,1760053851138,-2569.02,0.00021917,2]
[390463472,1760053851147,-1246.85,0.00021917,2]
[390463474,1760053851157,-500.0,0.00021917,2]
[390463486,1760053851365,-500.0,0.00021917,2]
[390463487,1760053851375,-500.0,0.00021917,2]
[390463488,1760053851385,-22405.16,0.00021917,2]
[390463489,1760053851395,-500.0,0.00021917,2]
[390463490,1760053851405,-500.0,0.00021917,2]
[390463492,1760053851414,-4037.16,0.00021917,2]
[390463494,1760053851426,-503.73158684,0.00021917,2]
[390463496,1760053851438,-500.0,0.00021917,2]
[390463498,1760053851447,-1158.23,0.00021917,2]
[390463500,1760053851457,-500.0,0.00021917,2]
[390463502,1760053851467,-374.4199795,0.00021917,2]
[390463504,1760053851476,-500.0,0.00021917,2]
[390463506,1760053851485,-2024.76,0.00021917,2]
[390463508,1760053851495,-500.0,0.00021917,2]
[390463510,1760053851506,-500.0,0.00021917,2]
[390463512,1760053851515,-1623.85,0.00021917,2]
[390463514,1760053851524,-500.0,0.00021917,2]
[390463516,1760053851534,-416.34175818,0.00021917,2]
[390463518,1760053851543,-500.0,0.00021917,2]
[390463520,1760053851552,-500.0,0.00021917,2]
[390463522,1760053851562,-500.0,0.00021917,2]
[390463524,1760053851572,-1051.02,0.00021917,2]
[390463525,1760053851581,-3197.23,0.00021917,2]
[390463527,1760053851591,-1281.61,0.00021917,2]
[390463529,1760053851600,-3737.08,0.00021917,2]
[390463531,1760053851610,-2741.09,0.00021917,2]
[390463533,1760053851619,-500.0,0.00021917,2]
[390463535,1760053851629,-500.0,0.00021917,2]
[390463538,1760053851639,-500.0,0.00021917,2]
[390463540,1760053851651,-2692.04,0.00021917,2]
[390463542,1760053851661,-2180.94,0.00021917,2]
[390463544,1760053851671,-552.64,0.00021917,2]
[390463545,1760053851680,-500.0,0.00021917,2]
[390463547,1760053851690,-947.44,0.00021917,2]
[390463549,1760053851700,-1174.72,0.00021917,2]
[390463551,1760053851710,-1758.2,0.00021917,2]
[390463553,1760053851720,-500.0,0.00021917,2]
[390463555,1760053851730,-500.0,0.00021917,2]
[390463557,1760053851740,-500.0,0.00021917,2]
[390463560,1760053851749,-500.0,0.00021917,2]
[390463562,1760053851759,-500.0,0.00021917,2]
[390463563,1760053851769,-500.0,0.00021917,2]
[390463566,1760053851779,-2740.79,0.00021917,2]
[390463567,1760053851788,-1835.0,0.00021917,2]
[390463569,1760053851798,-2465.52,0.00021917,2]
[390463572,1760053851809,-500.0,0.00021917,2]
[390463574,1760053851818,-500.0,0.00021917,2]
[390463576,1760053851828,-500.0,0.00021917,2]
[390463577,1760053851838,-1564.61,0.00021917,2]
[390463580,1760053851848,-500.0,0.00021917,2]
[390463582,1760053851858,-400.0,0.00021917,2]
[390463583,1760053851867,-306.234933,0.00021917,7]
[390463585,1760053851877,-500.0,0.00021917,2]
[390463587,1760053851887,-505.60072778,0.00021917,2]
[390463589,1760053851896,-2044.0,0.00021917,2]
[390463591,1760053851906,-500.0,0.00021917,2]
[390463593,1760053851916,-1163.89,0.00021917,2]
[390463595,1760053851926,-247.65518,0.00021917,7]
[390463598,1760053851936,-306.234933,0.00021917,7]
[390463600,1760053851947,-151.0,0.00021917,7]
[390463601,1760053851956,-404.51176381,0.00021917,2]
[390463603,1760053851966,-500.0,0.00021917,2]
[390463606,1760053851975,-4939.24,0.00021917,2]
[390463608,1760053851985,-500.0,0.00021917,2]
[390463610,1760053851993,-247.65518,0.00021917,7]
[390463611,1760053852003,-306.234933,0.00021917,7]
[390463614,1760053852012,-151.0,0.00021917,7]
[390463616,1760053852022,-1018.51,0.00021917,2]
[390463617,1760053852032,-3070.78,0.00021917,2]
[390463619,1760053852041,-500.0,0.00021917,2]
[390463622,1760053852051,-306.234933,0.00021917,7]
[390463623,1760053852059,-247.65518,0.00021917,7]
[390463625,1760053852069,-500.0,0.00021917,2]
[390463628,1760053852078,-151.0,0.00021917,7]
[390463630,1760053852087,-519.85,0.00021917,2]
[390463632,1760053852097,-500.0,0.00021917,2]
[390463633,1760053852106,-500.0,0.00021917,2]
[390463634,1760053852115,-3255.85,0.00021917,2]
[390463635,1760053852126,-690.94,0.00021917,2]
[390463636,1760053852135,-3591.29,0.00021917,2]
[390463637,1760053852145,-500.0,0.00021917,2]
[390463638,1760053852154,-247.65518,0.00021917,7]
[390463639,1760053852164,-500.0,0.00021917,2]
[390463640,1760053852174,-704.86,0.00021917,2]
[390463641,1760053852184,-500.0,0.00021917,2]
[390463642,1760053852193,-151.0,0.00021917,7]
[390463643,1760053852202,-1967.24,0.00021917,2]
[390463644,1760053852212,-500.0,0.00021917,2]
[390463645,1760053852227,-2727.74,0.00021917,2]
[390463646,1760053852236,-837.86,0.00021917,2]
[390463647,1760053852245,-500.0,0.00021917,2]
[390463648,1760053852255,-990.96,0.00021917,2]
[390463649,1760053852264,-4939.2,0.00021917,2]
[390463650,1760053852274,-6208.88,0.00021917,2]
[390463652,1760053852283,-270.075574,0.00021917,2]
[390463654,1760053852292,-500.0,0.00021917,2]
[390463656,1760053852302,-500.0,0.00021917,2]
[390463658,1760053852313,-500.0,0.00021917,2]
[390463661,1760053852322,-1424.84,0.00021917,2]
[390463663,1760053852333,-564.24,0.00021917,2]
[390463665,1760053852342,-151.0,0.00021917,7]
[390463667,1760053852352,-1407.39,0.00021917,2]
[390463669,1760053852361,-500.0,0.00021917,2]
[390463670,1760053852370,-500.0,0.00021917,2]
[390463672,1760053852380,-500.0,0.00021917,2]
[390463674,1760053852390,-151.0,0.00021917,7]
[390463676,1760053852399,-861.05,0.00021917,2]
[390463678,1760053852409,-152.921473,0.00021917,2]
[390463680,1760053852418,-2904.4,0.00021917,2]
[390463682,1760053852432,-408.709278,0.00021917,7]
[390463684,1760053852441,-500.0,0.00021917,2]
[390463686,1760053852451,-500.0,0.00021917,2]
[390463688,1760053852460,-408.709278,0.00021917,7]
[390463690,1760053852471,-557.72,0.00021917,2]
[390463692,1760053852481,-151.0,0.00021917,7]
[390463694,1760053852491,-500.0,0.00021917,2]
[390463696,1760053852501,-500.0,0.00021917,2]
[390463698,1760053852511,-500.0,0.00021917,2]
[390463699,1760053852520,-500.0,0.00021917,2]
[390463700,1760053852529,-151.0,0.00021917,7]
[390463701,1760053852538,-151.0,0.00021917,7]
[390463702,1760053852547,-204.077119,0.00021917,2]
[390463703,1760053852556,-408.709278,0.00021917,7]
[390463704,1760053852565,-500.0,0.00021917,2]
[390463705,1760053852575,-151.0,0.00021917,7]
[390463706,1760053852584,-151.0,0.00021917,7]
[390463707,1760053852593,-500.0,0.00021917,2]
[390463708,1760053852602,-507.7192097,0.00021917,2]
[390463709,1760053852611,-408.709278,0.00021917,7]
[390463710,1760053852620,-500.0,0.00021917,2]
[390463711,1760053852629,-500.0,0.00021917,2]
[390463712,1760053852638,-500.0,0.00021917,2]
[390463713,1760053852648,-500.0,0.00021917,2]
[390463714,1760053852658,-500.0,0.00021917,2]
[390463715,1760053852667,-151.0,0.00021918,7]
[390463717,1760053852676,-151.0,0.00021918,7]
[390463719,1760053852686,-1899.23510968,0.00021939,2]
[390463721,1760053852695,-377.0,0.0002194,2]
[390463723,1760053852705,-151.0,0.00021959,2]
[390463725,1760053852714,-151.0,0.00021959,2]
[390463727,1760053852724,-151.0,0.00021959,2]
[390463729,1760053852733,-151.0,0.00021959,2]
[390463731,1760053852742,-151.0,0.00021959,2]
[390463733,1760053852752,-151.0,0.00021959,2]
[390463735,1760053852762,-151.0,0.00021959,2]
[390463737,1760053852771,-151.0,0.00021959,2]
[390463739,1760053852780,-151.0,0.00021959,2]
[390463741,1760053852790,-151.0,0.00021959,2]
[390463743,1760053852800,-151.0,0.00021959,2]
[390463745,1760053852810,-151.0,0.00021959,2]
[390463747,1760053852821,-151.0,0.00021959,2]
[390463748,1760053852830,-151.0,0.00021959,2]
[390463749,1760053852839,-151.0,0.00021959,2]
[390463750,1760053852848,-151.0,0.00021959,2]
[390463751,1760053852858,-151.0,0.00021959,2]
[390463752,1760053852868,-151.0,0.00021959,2]
[390463753,1760053852877,-151.0,0.00021959,2]
[390463754,1760053852887,-151.0,0.00021959,2]
[390463755,1760053852896,-151.0,0.00021959,2]
[390463756,1760053852906,-151.0,0.00021959,2]
[390463757,1760053852916,-151.0,0.00021959,2]
[390463758,1760053852925,-175.20936874,0.00021959,2]
[390463759,1760053852935,-1899.23510968,0.00021969,2]
[390463760,1760053852944,-414.01339148,0.00021973,2]
[390463761,1760053852953,-500.0,0.00021973,2]
[390463762,1760053852963,-500.0,0.00021973,2]
[390463763,1760053852972,-500.0,0.00021973,2]
[390463764,1760053852982,-543.1548262,0.00021973,2]
[390463765,1760053852991,-500.0,0.00021973,2]
[390463766,1760053853001,-500.0,0.00021973,2]
[390463768,1760053853011,-500.0,0.00021973,2]
[390463770,1760053853021,-174.06272197,0.00021973,2]
[390463771,1760053853030,-221.85627131,0.00021973,2]
[390463772,1760053853040,-500.0,0.00021973,2]
[390463773,1760053853049,-500.0,0.00021973,2]
[390463775,1760053853059,-500.0,0.00021973,2]
[390463777,1760053853069,-169.77861094,0.00021973,2]
[390463779,1760053853078,-508.36447098,0.00021973,2]
[390463781,1760053853088,-500.0,0.00021973,2]
[390463783,1760053853097,-500.22539504,0.00021973,2]
[390463785,1760053853107,-374.2755949,0.00021973,2]
[390463787,1760053853116,-500.0,0.00021973,2]
[390463789,1760053853126,-500.0,0.00021973,2]
[390463791,1760053853135,-213.65982248,0.00021973,2]
[390463793,1760053853144,-500.0,0.00021973,2]
[390463795,1760053853154,-500.0,0.00021973,2]
[390463797,1760053853163,-500.0,0.00021973,2]
[390463799,1760053853172,-529.22650464,0.00021973,2]
[390463801,1760053853182,-166.54655253,0.00021973,2]
[390463803,1760053853191,-500.0,0.00021973,2]
[390463805,1760053853200,-160.81737706,0.00021973,2]
[390463807,1760053853209,-500.0,0.00021973,2]
[390463809,1760053853222,-500.0,0.00021973,2]
[390463810,1760053853232,-177.15677238,0.00021973,2]
[390463811,1760053853245,-500.0,0.00021973,2]
[390463812,1760053853254,-500.0,0.00021973,2]
[390463813,1760053853263,-500.0,0.00021973,2]
[390463814,1760053853273,-500.0,0.00021973,2]
[390463815,1760053853282,-175.83,0.00021981,2]
[390463816,1760053853291,-335.87,0.00021981,2]
[390463817,1760053853301,-150.0,0.00021997,2]
[390463818,1760053853310,-150.0,0.00021997,2]
[390463819,1760053853319,-500.0,0.00021997,2]
[390463820,1760053853328,-178.62162452,0.00021997,2]
[390463821,1760053853337,-500.0,0.00021997,2]
[390463822,1760053853347,-500.0,0.00021997,2]
[390463823,1760053853357,-150.0,0.00021997,2]
[390463824,1760053853367,-500.0,0.00021997,2]
[390463825,1760053853376,-150.0,0.00021997,2]
[390463826,1760053853386,-150.0,0.00021997,2]
[390463827,1760053853396,-150.0,0.00021997,2]
[390463828,1760053853406,-150.0,0.00021997,2]
[390463829,1760053853415,-150.0,0.00021997,2]
[390463830,1760053853424,-150.0,0.00021997,2]
[390463831,1760053853434,-150.0,0.00021997,2]
[390463832,1760053853448,-150.0,0.00021997,2]
[390463833,1760053853458,-150.0,0.00021997,2]
[390463834,1760053853467,-728.0,0.00021997,2]
[390463835,1760053853476,-500.0,0.00021997,2]
[390463836,1760053853487,-500.0,0.00021997,2]
[390463837,1760053853496,-500.0,0.00021997,2]
[390463838,1760053853505,-150.0,0.00021997,2]
[390463839,1760053853514,-1588.0,0.00021997,2]
[390463840,1760053853526,-150.0,0.00021997,2]
[390463841,1760053853535,-150.0,0.00021997,2]
[390463842,1760053853544,-4096.0,0.00021997,2]
[390463843,1760053853554,-500.0,0.00021997,2]
[390463844,1760053853563,-500.0,0.00021997,2]
[390463845,1760053853573,-150.0,0.00021997,2]
[390463846,1760053853582,-150.0,0.00021997,2]
[390463847,1760053853591,-500.0,0.00021997,2]
[390463848,1760053853600,-150.0,0.00021997,2]
[390463849,1760053853610,-150.0,0.00021997,2]
[390463850,1760053853619,-500.0,0.00021997,2]
[390463851,1760053853628,-500.0,0.00021997,2]
[390463852,1760053853637,-150.0,0.00021997,2]
[390463853,1760053853724,-500.0,0.00021997,2]
[390463854,1760053853734,-297.2014004,0.00021997,2]
[390463855,1760053853743,-245.34020124,0.00021997,2]
[390463856,1760053853752,-500.0,0.00021997,2]
[390463857,1760053853762,-150.0,0.00021997,2]
[390463858,1760053853771,-664.0,0.00021997,2]
[390463859,1760053853780,-500.0,0.00021998,2]
[390463860,1760053853789,-500.0,0.00021998,2]
[390463861,1760053853798,-500.0,0.00021998,2]
[390463862,1760053853807,-500.0,0.00021998,2]
[390463863,1760053853816,-500.0,0.00021998,2]
[390463864,1760053853827,-500.0,0.00021998,2]
[390463865,1760053853836,-500.0,0.00021998,2]
[390463866,1760053853845,-500.0,0.00021998,2]
[390463867,1760053853855,-500.0,0.00021998,2]
[390463868,1760053853864,-184.06,0.00021998,2]
[390463869,1760053853873,-500.0,0.00021998,2]
[390463870,1760053853882,-500.0,0.00021998,2]
[390463871,1760053853891,-500.0,0.00021998,2]
[390463872,1760053853900,-586.21,0.00021998,2]
[390463873,1760053853910,-500.0,0.00021998,2]
[390463874,1760053853919,-500.0,0.00021998,2]
[390463875,1760053853929,-500.0,0.00021998,2]
[390463876,1760053853938,-10000.0,0.00021998,2]
[390463877,1760053853948,-500.0,0.00021998,2]
[390463878,1760053853957,-500.0,0.00021998,2]
[390463879,1760053853966,-150.0,0.00021998,2]
[390463880,1760053853975,-1042.84,0.00021998,2]
[390463881,1760053853985,-1042.84,0.00021998,2]
[390463882,1760053853994,-1042.84,0.00021998,2]
[390463883,1760053854004,-1000.0,0.00021999,2]
[390463884,1760053854013,-75276.3703134,0.00021999,2]
[390463885,1760053854629,-1815.30378041,0.00021999,2]
[390463887,1760053854665,-449223.29658001,0.00021999,2]
[390463889,1760053854678,-270.45412485,0.00021999,2]
[390463893,1760053854705,-29848.52837128,0.00021999,2]
[390463929,1760053855584,-1634.67715899,0.00021875,2]
[390463930,1760053855596,-669.5440201,0.00021875,2]
[390463931,1760053855609,-3574.24593284,0.00021875,2]
[390463932,1760053855619,-500.0,0.00021917,2]
[390463933,1760053855629,-1502.52,0.00021917,2]
[390463934,1760053855638,-803.29,0.00021917,2]
[390463935,1760053855648,-500.0,0.00021917,2]
[390463936,1760053855659,-500.0,0.00021917,2]
[390463937,1760053855669,-500.0,0.00021917,2]
[390463938,1760053855679,-500.0,0.00021917,2]
[390463940,1760053855689,-213.16310298,0.00021917,2]
[390463941,1760053855698,-500.0,0.00021917,2]
[390463942,1760053855708,-5591.08365438,0.00021999,2]
[390463943,1760053855826,-200.0,0.00021973,2]
[390463944,1760053855836,-416.15,0.00021999,2]
[390463945,1760053855881,-2496.94352123,0.00021999,2]
[390463946,1760053855892,-2547.4125384,0.00021999,2]
[390463947,1760053855904,-1482.5189099,0.00021999,2]
[390463948,1760053855931,-29581.55660764,0.00021999,2]
[390463949,1760053855941,-597.04,0.00021999,2]
[390463950,1760053855953,-500.0,0.00021999,2]
[390463951,1760053855963,-500.0,0.00021999,2]
[390463952,1760053855972,-151.0,0.00021999,7]
[390463953,1760053855983,-151.0,0.00021999,7]
[390463954,1760053855993,-151.0,0.00021999,7]
[390463955,1760053856003,-151.0,0.00021999,7]
[390463956,1760053856012,-259.287001,0.00021999,7]
[390463957,1760053856022,-151.0,0.00021999,7]
[390463958,1760053856032,-151.0,0.00021999,7]
[390463959,1760053856042,-151.0,0.00021999,7]
[390463960,1760053856051,-151.0,0.00021999,7]
[390463961,1760053856061,-151.0,0.00021999,7]
[390463962,1760053856072,-48.91175575,0.00021999,7]
[390463963,1760053857427,-151.0,0.00021917,2]
[390463964,1760053857438,-151.0,0.00021917,7]
[390463965,1760053857451,-136.5333316,0.00021917,2]
[390463966,1760053857494,-280.62,0.00021917,2]
[390463967,1760053857506,-82.8466684,0.00021917,2]
[390463968,1760053857517,-373.1033316,0.00021917,2]
[390463969,1760053857532,-126.8966684,0.00021917,2]
[390463970,1760053857543,-500.0,0.00021917,2]
[390463971,1760053857554,-500.0,0.00021917,2]
[390463972,1760053857564,-500.0,0.00021917,2]
[390463973,1760053857574,-84.18950838,0.00021917,2]
[390463974,1760053857584,-415.81049162,0.00021917,2]
[390463975,1760053857594,-500.0,0.00021917,2]
[390463976,1760053857603,-151.0,0.00021917,7]
[390463977,1760053857614,-108.18950838,0.00021917,2]
[390463978,1760053857750,-271.17290904,0.00021917,2]
[390463979,1760053857761,-250.17393943,0.00021917,2]
[390463980,1760053857771,-170.01698002,0.00021917,2]
[390463981,1760053857782,-329.98301998,0.00021917,2]
[390463982,1760053857792,-500.0,0.00021917,2]
[390463983,1760053857801,-102.08824425,0.00021999,7]
[390463984,1760053857811,-151.0,0.00021999,7]
[390463985,1760053857821,-151.0,0.00021999,7]
[390463986,1760053857832,-224.51332,0.00021999,7]
[390463987,1760053857841,-151.0,0.00021999,7]
[390463988,1760053857850,-224.51332,0.00021999,7]
[390463989,1760053857860,-226.8678237,0.00021999,7]
[390463990,1760053857869,-224.51332,0.00021999,7]
[390463991,1760053857883,-224.51332,0.00021999,7]
[390463992,1760053857894,-151.0,0.00021999,7]
[390463993,1760053857903,-235.328995,0.00021999,7]
[390463994,1760053857913,-324.276955,0.00021999,7]
[390463995,1760053857923,-151.0,0.00021999,7]
[390463996,1760053857934,-151.0,0.00021999,7]
[390463997,1760053857943,-324.276955,0.00021999,7]
[390463998,1760053857953,-151.0,0.00021999,7]
[390463999,1760053857963,-151.0,0.00021999,7]
[390464000,1760053857973,-151.0,0.00021999,7]
[390464001,1760053857984,-324.276955,0.00021999,7]
[390464002,1760053857994,-151.0,0.00021999,7]
[390464003,1760053858004,-324.276955,0.00021999,7]
[390464004,1760053858015,-151.0,0.00021999,7]
[390464005,1760053858024,-562.808732,0.00021999,7]
[390464006,1760053858035,-151.0,0.00021999,7]
[390464007,1760053858044,-562.808732,0.00021999,7]
[390464008,1760053858054,-151.0,0.00021999,7]
[390464009,1760053858064,-562.808732,0.00021999,7]
[390464010,1760053858074,-151.0,0.00021999,7]
[390464011,1760053858084,-562.808732,0.00021999,7]
[390464012,1760053858094,-151.0,0.00021999,7]
[390464013,1760053858105,-578.72,0.00021999,2]
[390464014,1760053858115,-151.0,0.00021999,7]
[390464015,1760053858125,-151.0,0.00021999,7]
[390464016,1760053858136,-300.949678,0.00021999,7]
[390464017,1760053858147,-151.0,0.00021999,7]
[390464018,1760053858158,-300.949678,0.00021999,7]
[390464019,1760053858168,-151.0,0.00021999,7]
[390464020,1760053858179,-151.0,0.00021999,7]
[390464021,1760053858189,-300.949678,0.00021999,7]
[390464022,1760053858198,-151.0,0.00021999,7]
[390464023,1760053858208,-300.949678,0.00021999,7]
[390464024,1760053858219,-151.0,0.00021999,7]
[390464025,1760053858228,-151.0,0.00021999,7]
[390464026,1760053858238,-151.0,0.00021999,7]
[390464027,1760053858251,-151.0,0.00021999,7]
[390464028,1760053858262,-151.0,0.00021999,7]
[390464029,1760053858272,-151.0,0.00021999,7]
[390464030,1760053858286,-151.0,0.00021999,7]
[390464031,1760053858297,-174.856445,0.00021999,7]
[390464032,1760053858308,-169.559441,0.00021999,7]
[390464033,1760053858319,-169.559441,0.00021999,7]
[390464034,1760053858330,-151.0,0.00021999,7]
[390464035,1760053858341,-169.559441,0.00021999,7]
[390464036,1760053858351,-199.358392,0.00021999,7]
[390464037,1760053858361,-169.559441,0.00021999,7]
[390464038,1760053858371,-151.0,0.00021999,7]
[390464039,1760053858383,-151.0,0.00021999,7]
[390464040,1760053858393,-151.0,0.00021999,7]
[390464041,1760053858403,-151.0,0.00021999,7]
[390464042,1760053858412,-180.31278,0.00021999,7]
[390464043,1760053858422,-151.0,0.00021999,7]
[390464044,1760053858432,-167.95311,0.00021999,7]
[390464045,1760053858441,-175.527181,0.00021999,7]
[390464046,1760053858452,-167.95311,0.00021999,7]
[390464047,1760053858465,-151.0,0.00021999,7]
[390464048,1760053858474,-167.95311,0.00021999,7]
[390464049,1760053858484,-167.95311,0.00021999,7]
[390464050,1760053858493,-151.0,0.00021999,7]
[390464051,1760053858504,-151.0,0.00021999,7]
[390464052,1760053858514,-151.0,0.00021999,7]
[390464053,1760053858526,-151.0,0.00021999,7]
[390464054,1760053858536,-151.0,0.00021999,7]
[390464055,1760053858548,-279.603949,0.00021999,7]
[390464056,1760053858558,-151.0,0.00021999,7]
[390464057,1760053858567,-279.603949,0.00021999,7]
[390464058,1760053858576,-151.0,0.00021999,7]
[390464059,1760053858585,-279.603949,0.00021999,7]
[390464060,1760053858595,-151.0,0.00021999,7]
[390464061,1760053858604,-279.603949,0.00021999,7]
[390464062,1760053858614,-151.0,0.00021999,7]
[390464063,1760053858623,-151.0,0.00021999,7]
[390464064,1760053858633,-151.0,0.00021999,7]
[390464065,1760053858642,-151.0,0.00021999,7]
[390464066,1760053858652,-151.0,0.00021999,7]
[390464067,1760053858661,-151.0,0.00021999,7]
[390464068,1760053858671,-283.091516,0.00021999,7]
[390464069,1760053858684,-151.0,0.00021999,7]
[390464070,1760053858694,-151.0,0.00021999,7]
[390464071,1760053858703,-151.0,0.00021999,7]
[390464072,1760053858714,-179.992573,0.00021999,7]
[390464073,1760053858724,-151.0,0.00021999,7]
[390464074,1760053858735,-151.0,0.00021999,7]
[390464075,1760053858745,-179.992573,0.00021999,7]
[390464076,1760053858755,-179.992573,0.00021999,7]
[390464077,1760053858764,-179.992573,0.00021999,7]
[390464078,1760053858774,-151.0,0.00021999,7]
[390464079,1760053858784,-151.0,0.00021999,7]
[390464080,1760053858795,-151.0,0.00021999,7]
[390464081,1760053858805,-151.0,0.00021999,7]
[390464082,1760053858817,-470.086711,0.00021999,7]
[390464083,1760053858826,-151.140791,0.00021999,7]
[390464084,1760053858837,-470.086711,0.00021999,7]
[390464085,1760053858846,-99.59877906,0.00021999,7]
[390464086,1760053858861,-370.48793194,0.00021999,7]
[390464087,1760053858871,-4.23500631,0.00021999,7]
[390464088,1760053858882,-146.76499369,0.00021999,7]
[390464089,1760053858892,-470.086711,0.00021999,7]
[390464090,1760053858901,-151.0,0.00021999,7]
[390464091,1760053858911,-151.0,0.00021999,7]
[390464092,1760053858925,-151.0,0.00021999,7]
[390464093,1760053858934,-151.0,0.00021999,7]
[390464094,1760053858944,-151.0,0.00021999,7]
[390464095,1760053858953,-151.0,0.00021999,7]
[390464096,1760053858963,-500.0,0.00021999,2]
[390464097,1760053858974,-500.0,0.00021999,2]
[390464098,1760053858985,-214.43288885,0.00021999,2]
[390464099,1760053858997,-285.56711115,0.00021999,2]
[390464100,1760053859006,-151.0,0.00021999,7]
[390464101,1760053859016,-500.0,0.00021999,2]
[390464102,1760053859026,-42.22914581,0.00021999,2]
[390464105,1760054078526,2000.0,0.00028767,120]
[390464108,1760054216104,10000.0,0.00028767,120]
[390464109,1760054250659,4389.33043335,0.000287,120]
[390464111,1760054335787,1000.0,0.00028767,120]
[390464112,1760054342640,6400.0,0.00028767,120]